[Event "Titled Tuesday Blitz July 05 Late 2022"]
[White "Tanenbaum, Zachary"]
[Black "Melikhov, Evgeny V."]
[WhiteFideId "2060850"]
[BlackFideId "4122046"]
[WhiteElo "2175"]
[BlackElo "1995"]
[Result "1-0"]
[Round "02"]
[TimeControl "180+1"]
[Date "2022.07.06"]
[WhiteClock "0:00:29"]
[BlackClock "0:00:56"]

1. e4 {[%clk 0:02:59]}  e5 {[%clk 0:02:59]} 2. Nf3 {[%clk 0:03:00]}  Nc6 {[%clk 0:03:00]} 3. Bc4 {[%clk 0:03:00]}  Nf6 {[%clk 0:03:00]} 4. d3 {[%clk 0:03:01]}  Be7 {[%clk 0:02:59]} 5. O-O {[%clk 0:03:01]}  O-O {[%clk 0:02:58]} 6. Re1 {[%clk 0:03:01]}  d6 {[%clk 0:02:58]} 7. a4 {[%clk 0:03:02]}  a5 {[%clk 0:02:57]} 8. Nbd2 {[%clk 0:03:02]}  Be6 {[%clk 0:02:56]} 9. c3 {[%clk 0:03:03]}  Qd7 {[%clk 0:02:48]} 10. Qb3 {[%clk 0:02:39]}  Bxc4 {[%clk 0:02:46]} 11. Nxc4 {[%clk 0:02:40]}  Nd8 {[%clk 0:02:42]} 12. d4 {[%clk 0:02:35]}  exd4 {[%clk 0:02:38]} 13. cxd4 {[%clk 0:02:36]}  d5 {[%clk 0:02:38]} 14. Nce5 {[%clk 0:02:35]}  Qd6 {[%clk 0:02:38]} 15. exd5 {[%clk 0:02:13]}  Qxd5 {[%clk 0:02:18]} 16. Qc2 {[%clk 0:02:09]}  Bd6 {[%clk 0:02:13]} 17. Bg5 {[%clk 0:02:05]}  Nc6 {[%clk 0:01:57]} 18. Bxf6 {[%clk 0:02:04]}  gxf6 {[%clk 0:01:57]} 19. Ng4 {[%clk 0:02:02]}  Kg7 {[%clk 0:01:49]} 20. Qxh7+ {[%clk 0:01:07]}  Kxh7 {[%clk 0:01:47]} 21. Nxf6+ {[%clk 0:01:08]}  Kg7 {[%clk 0:01:46]} 22. Nxd5 {[%clk 0:01:09]}  Rfe8 {[%clk 0:01:40]} 23. g3 {[%clk 0:01:07]}  Nb4 {[%clk 0:01:38]} 24. Nxb4 {[%clk 0:01:05]}  Bxb4 {[%clk 0:01:38]} 25. Rxe8 {[%clk 0:00:58]}  Rxe8 {[%clk 0:01:39]} 26. Kf1 {[%clk 0:00:56]}  c6 {[%clk 0:01:33]} 27. Rd1 {[%clk 0:00:54]}  b5 {[%clk 0:01:28]} 28. Ne5 {[%clk 0:00:49]}  c5 {[%clk 0:01:25]} 29. axb5 {[%clk 0:00:47]}  cxd4 {[%clk 0:01:25]} 30. Nc6 {[%clk 0:00:48]}  Bc5 {[%clk 0:01:15]} 31. Nxa5 {[%clk 0:00:44]}  Rb8 {[%clk 0:01:15]} 32. Nb3 {[%clk 0:00:29]}  Rxb5 {[%clk 0:01:15]} 33. Nxc5 {[%clk 0:00:29]}  Rxc5 {[%clk 0:01:15]} 34. Rxd4 {[%clk 0:00:29]}  Rc2 {[%clk 0:01:16]} 35. b4 {[%clk 0:00:29]}  Rb2 {[%clk 0:01:17]} 36. h4 {[%clk 0:00:30]}  Kg6 {[%clk 0:01:16]} 37. Rf4 {[%clk 0:00:30]}  f5 {[%clk 0:01:16]} 38. Ke1 {[%clk 0:00:30]}  Kf6 {[%clk 0:01:15]} 39. Kd1 {[%clk 0:00:31]}  Ke5 {[%clk 0:01:15]} 40. Kc1 {[%clk 0:00:31]}  Ra2 {[%clk 0:01:13]} 41. b5 {[%clk 0:00:29]}  Ra5 {[%clk 0:01:06]} 42. Rb4 {[%clk 0:00:29]}  Ra7 {[%clk 0:01:06]} 43. b6 {[%clk 0:00:30]}  Rb7 {[%clk 0:01:07]} 44. Kd2 {[%clk 0:00:30]}  Kd5 {[%clk 0:01:08]} 45. Ke3 {[%clk 0:00:31]}  Kc5 {[%clk 0:01:08]} 46. Rb1 {[%clk 0:00:31]}  Kc6 {[%clk 0:01:08]} 47. Kf4 {[%clk 0:00:32]}  Kd5 {[%clk 0:01:01]} 48. Kxf5 {[%clk 0:00:30]}  Rf7+ {[%clk 0:01:01]} 49. Kg6 {[%clk 0:00:30]}  Ke6 {[%clk 0:00:56]} 50. b7 {[%clk 0:00:29]} 1-0


[Site "https://www.chess.com"]

[Event "Titled Tuesday Blitz July 05 Late 2022"]
[White "Tica, Sven"]
[Black "Timofeev, Artyom"]
[WhiteFideId "14526948"]
[BlackFideId "4140419"]
[WhiteElo "2346"]
[BlackElo "2578"]
[Result "1/2-1/2"]
[Round "02"]
[TimeControl "180+1"]
[Date "2022.07.05"]
[WhiteClock "0:00:17"]
[BlackClock "0:00:24"]

1. e4 {[%clk 0:03:00]}  c6 {[%clk 0:02:59]} 2. Nf3 {[%clk 0:03:00]}  d5 {[%clk 0:02:59]} 3. d3 {[%clk 0:03:01]}  dxe4 {[%clk 0:02:59]} 4. dxe4 {[%clk 0:03:02]}  Qxd1+ {[%clk 0:02:59]} 5. Kxd1 {[%clk 0:03:03]}  g6 {[%clk 0:02:59]} 6. a4 {[%clk 0:02:55]}  Bg7 {[%clk 0:02:56]} 7. h3 {[%clk 0:02:51]}  Nf6 {[%clk 0:02:55]} 8. Nbd2 {[%clk 0:02:51]}  Nbd7 {[%clk 0:02:51]} 9. Bc4 {[%clk 0:02:43]}  a5 {[%clk 0:02:46]} 10. c3 {[%clk 0:02:39]}  Nc5 {[%clk 0:02:46]} 11. Re1 {[%clk 0:02:39]}  Nfd7 {[%clk 0:02:36]} 12. Kc2 {[%clk 0:02:34]}  Nb6 {[%clk 0:02:35]} 13. b3 {[%clk 0:02:19]}  Nxc4 {[%clk 0:02:26]} 14. Nxc4 {[%clk 0:02:20]}  Be6 {[%clk 0:02:25]} 15. Ncd2 {[%clk 0:02:14]}  O-O-O {[%clk 0:02:12]} 16. Ba3 {[%clk 0:02:11]}  Nd3 {[%clk 0:02:08]} 17. Rf1 {[%clk 0:02:09]}  Rhe8 {[%clk 0:01:51]} 18. Ng5 {[%clk 0:02:08]}  Bh6 {[%clk 0:01:22]} 19. Ndf3 {[%clk 0:01:01]}  Nf4 {[%clk 0:01:20]} 20. Nxe6 {[%clk 0:00:51]}  Nxe6 {[%clk 0:01:18]} 21. Rad1 {[%clk 0:00:50]}  Bg7 {[%clk 0:01:14]} 22. g3 {[%clk 0:00:48]}  h5 {[%clk 0:01:13]} 23. Rxd8+ {[%clk 0:00:44]}  Kxd8 {[%clk 0:01:12]} 24. Rd1+ {[%clk 0:00:44]}  Kc7 {[%clk 0:01:12]} 25. Rd3 {[%clk 0:00:40]}  Bf6 {[%clk 0:01:07]} 26. Bc1 {[%clk 0:00:38]}  b5 {[%clk 0:01:05]} 27. Be3 {[%clk 0:00:28]}  bxa4 {[%clk 0:00:56]} 28. bxa4 {[%clk 0:00:29]}  Rg8 {[%clk 0:00:55]} 29. Rd1 {[%clk 0:00:26]}  g5 {[%clk 0:00:53]} 30. e5 {[%clk 0:00:20]}  Bh8 {[%clk 0:00:53]} 31. g4 {[%clk 0:00:20]}  hxg4 {[%clk 0:00:52]} 32. hxg4 {[%clk 0:00:21]}  f6 {[%clk 0:00:52]} 33. exf6 {[%clk 0:00:19]}  Bxf6 {[%clk 0:00:52]} 34. Rb1 {[%clk 0:00:19]}  Rf8 {[%clk 0:00:42]} 35. Nd2 {[%clk 0:00:18]}  Be5 {[%clk 0:00:37]} 36. Nc4 {[%clk 0:00:16]}  Bf4 {[%clk 0:00:36]} 37. Bb6+ {[%clk 0:00:16]}  Kc8 {[%clk 0:00:35]} 38. Bxa5 {[%clk 0:00:17]}  Bc7 {[%clk 0:00:33]} 39. Bb6 {[%clk 0:00:14]}  Bxb6 {[%clk 0:00:31]} 40. Rxb6 {[%clk 0:00:14]}  Rxf2+ {[%clk 0:00:30]} 41. Kb3 {[%clk 0:00:12]}  Kc7 {[%clk 0:00:28]} 42. a5 {[%clk 0:00:12]}  Nc5+ {[%clk 0:00:27]} 43. Ka3 {[%clk 0:00:12]}  Rc2 {[%clk 0:00:24]} 44. Kb4 {[%clk 0:00:12]}  Nd3+ {[%clk 0:00:23]} 45. Kb3 {[%clk 0:00:12]}  Rc1 {[%clk 0:00:20]} 46. a6 {[%clk 0:00:12]}  Rb1+ {[%clk 0:00:20]} 47. Kc2 {[%clk 0:00:11]}  Rxb6 {[%clk 0:00:20]} 48. Nxb6 {[%clk 0:00:11]}  Ne1+ {[%clk 0:00:20]} 49. Kd2 {[%clk 0:00:10]}  Kxb6 {[%clk 0:00:21]} 50. Kxe1 {[%clk 0:00:11]}  Kxa6 {[%clk 0:00:21]} 51. Ke2 {[%clk 0:00:11]}  Kb5 {[%clk 0:00:22]} 52. Ke3 {[%clk 0:00:12]}  Kc4 {[%clk 0:00:21]} 53. Ke4 {[%clk 0:00:13]}  Kxc3 {[%clk 0:00:20]} 54. Kf5 {[%clk 0:00:14]}  c5 {[%clk 0:00:21]} 55. Kxg5 {[%clk 0:00:14]}  c4 {[%clk 0:00:21]} 56. Kf5 {[%clk 0:00:13]}  Kb3 {[%clk 0:00:22]} 57. g5 {[%clk 0:00:14]}  c3 {[%clk 0:00:22]} 58. g6 {[%clk 0:00:15]}  c2 {[%clk 0:00:23]} 59. g7 {[%clk 0:00:15]}  c1=Q {[%clk 0:00:23]} 60. g8=Q+ {[%clk 0:00:16]}  Qc4 {[%clk 0:00:24]} 61. Qxc4+ {[%clk 0:00:16]}  Kxc4 {[%clk 0:00:24]} 62. Ke6 {[%clk 0:00:17]}  Kd4 {[%clk 0:00:24]} 63. Kxe7 {[%clk 0:00:17]} 1/2-1/2


[Site "https://www.chess.com"]

[Event "Titled Tuesday Blitz July 05 Late 2022"]
[White "Tokhirjonova, Gulrukhbegim"]
[Black "Maghsoodloo, Parham"]
[WhiteFideId "14203626"]
[BlackFideId "12539929"]
[WhiteElo "2227"]
[BlackElo "2607"]
[Result "0-1"]
[Round "02"]
[TimeControl "180+1"]
[Date "2022.07.05"]
[WhiteClock "0:00:11"]
[BlackClock "0:00:53"]

1. e4 {[%clk 0:02:58]}  e5 {[%clk 0:02:59]} 2. Nf3 {[%clk 0:02:57]}  Nc6 {[%clk 0:02:59]} 3. Bb5 {[%clk 0:02:58]}  Nf6 {[%clk 0:02:59]} 4. d3 {[%clk 0:02:57]}  Bc5 {[%clk 0:02:58]} 5. c3 {[%clk 0:02:57]}  O-O {[%clk 0:02:57]} 6. O-O {[%clk 0:02:54]}  Re8 {[%clk 0:02:56]} 7. Bg5 {[%clk 0:02:47]}  h6 {[%clk 0:02:55]} 8. Bh4 {[%clk 0:02:46]}  a6 {[%clk 0:02:55]} 9. Ba4 {[%clk 0:02:46]}  g5 {[%clk 0:02:51]} 10. Bg3 {[%clk 0:02:44]}  b5 {[%clk 0:02:51]} 11. Bb3 {[%clk 0:02:43]}  d6 {[%clk 0:02:46]} 12. d4 {[%clk 0:02:40]}  Bb6 {[%clk 0:02:36]} 13. dxe5 {[%clk 0:02:37]}  dxe5 {[%clk 0:02:27]} 14. Nbd2 {[%clk 0:02:20]}  Bg4 {[%clk 0:02:26]} 15. Qe2 {[%clk 0:01:59]}  Na5 {[%clk 0:02:12]} 16. Bc2 {[%clk 0:01:55]}  Nh5 {[%clk 0:02:12]} 17. Rad1 {[%clk 0:01:54]}  Qf6 {[%clk 0:02:11]} 18. Kh1 {[%clk 0:01:46]}  Nf4 {[%clk 0:01:57]} 19. Bxf4 {[%clk 0:01:45]}  Qxf4 {[%clk 0:01:58]} 20. h3 {[%clk 0:01:40]}  Bh5 {[%clk 0:01:58]} 21. g4 {[%clk 0:01:27]}  Bg6 {[%clk 0:01:58]} 22. Rfe1 {[%clk 0:01:24]}  Rad8 {[%clk 0:01:57]} 23. Kg2 {[%clk 0:01:24]}  h5 {[%clk 0:01:56]} 24. Nh2 {[%clk 0:01:17]}  hxg4 {[%clk 0:01:56]} 25. hxg4 {[%clk 0:01:16]}  Kg7 {[%clk 0:01:54]} 26. Ndf3 {[%clk 0:01:12]}  Nc4 {[%clk 0:01:45]} 27. b3 {[%clk 0:01:03]}  Nd6 {[%clk 0:01:43]} 28. Qd2 {[%clk 0:00:47]}  f6 {[%clk 0:01:31]} 29. Qxf4 {[%clk 0:00:39]}  exf4 {[%clk 0:01:30]} 30. Nf1 {[%clk 0:00:31]}  c5 {[%clk 0:01:26]} 31. N1d2 {[%clk 0:00:28]}  Nf7 {[%clk 0:01:20]} 32. c4 {[%clk 0:00:28]}  Ba5 {[%clk 0:01:19]} 33. Rh1 {[%clk 0:00:25]}  Bxd2 {[%clk 0:01:15]} 34. Nxd2 {[%clk 0:00:20]}  Ne5 {[%clk 0:01:15]} 35. f3 {[%clk 0:00:19]}  Rd4 {[%clk 0:01:14]} 36. Nb1 {[%clk 0:00:19]}  bxc4 {[%clk 0:01:14]} 37. Rxd4 {[%clk 0:00:19]}  cxd4 {[%clk 0:01:14]} 38. bxc4 {[%clk 0:00:18]}  Bf7 {[%clk 0:01:10]} 39. Rd1 {[%clk 0:00:17]}  Rd8 {[%clk 0:01:08]} 40. Bb3 {[%clk 0:00:16]}  Bxc4 {[%clk 0:01:05]} 41. Nd2 {[%clk 0:00:16]}  Bxb3 {[%clk 0:01:00]} 42. axb3 {[%clk 0:00:17]}  Rc8 {[%clk 0:01:00]} 43. Kf2 {[%clk 0:00:17]}  Rc3 {[%clk 0:00:59]} 44. Ke2 {[%clk 0:00:15]}  Re3+ {[%clk 0:00:59]} 45. Kf2 {[%clk 0:00:13]}  Nd3+ {[%clk 0:00:53]} 46. Kg2 {[%clk 0:00:11]}  Nc5 {[%clk 0:00:53]} 47. Ra1 {[%clk 0:00:11]}  Re2+ {[%clk 0:00:53]} 0-1


[Site "https://www.chess.com"]

[Event "Titled Tuesday Blitz July 05 Late 2022"]
[White "Tomiello, Lucas Costamilan"]
[Black "Zhou, Qiyu"]
[WhiteFideId "22701940"]
[BlackFideId "505161"]
[WhiteElo "1998"]
[BlackElo "1925"]
[Result "1/2-1/2"]
[Round "02"]
[TimeControl "180+1"]
[Date "2022.07.06"]
[WhiteClock "0:00:13"]
[BlackClock "0:00:04"]

1. e4 {[%clk 0:03:00]}  e5 {[%clk 0:02:56]} 2. Nf3 {[%clk 0:03:01]}  Nc6 {[%clk 0:02:57]} 3. Bc4 {[%clk 0:03:00]}  Bc5 {[%clk 0:02:57]} 4. Nc3 {[%clk 0:03:00]}  Nf6 {[%clk 0:02:57]} 5. d3 {[%clk 0:03:01]}  O-O {[%clk 0:02:56]} 6. Bg5 {[%clk 0:02:59]}  h6 {[%clk 0:02:56]} 7. Bh4 {[%clk 0:02:58]}  Be7 {[%clk 0:02:52]} 8. a3 {[%clk 0:02:53]}  d6 {[%clk 0:02:51]} 9. h3 {[%clk 0:02:53]}  Be6 {[%clk 0:02:49]} 10. Bxe6 {[%clk 0:02:53]}  fxe6 {[%clk 0:02:50]} 11. O-O {[%clk 0:02:51]}  d5 {[%clk 0:02:48]} 12. Re1 {[%clk 0:02:46]}  d4 {[%clk 0:02:30]} 13. Nb1 {[%clk 0:02:45]}  Qe8 {[%clk 0:02:24]} 14. Bg3 {[%clk 0:02:43]}  Bd6 {[%clk 0:02:19]} 15. Nbd2 {[%clk 0:02:43]}  Nh5 {[%clk 0:02:13]} 16. Kh2 {[%clk 0:02:43]}  Nf4 {[%clk 0:01:47]} 17. Bxf4 {[%clk 0:02:43]}  exf4 {[%clk 0:01:47]} 18. e5 {[%clk 0:02:43]}  Be7 {[%clk 0:01:47]} 19. Qe2 {[%clk 0:02:34]}  Rd8 {[%clk 0:01:44]} 20. Qe4 {[%clk 0:02:30]}  Rf5 {[%clk 0:01:44]} 21. Nc4 {[%clk 0:02:12]}  Qh5 {[%clk 0:01:38]} 22. a4 {[%clk 0:02:04]}  Bf8 {[%clk 0:01:30]} 23. Rf1 {[%clk 0:01:57]}  g5 {[%clk 0:00:55]} 24. g4 {[%clk 0:01:53]}  fxg3+ {[%clk 0:00:52]} 25. fxg3 {[%clk 0:01:53]}  Qf7 {[%clk 0:00:46]} 26. Kg2 {[%clk 0:01:49]}  Bg7 {[%clk 0:00:44]} 27. h4 {[%clk 0:01:38]}  Rf8 {[%clk 0:00:39]} 28. hxg5 {[%clk 0:01:38]}  hxg5 {[%clk 0:00:40]} 29. Nxg5 {[%clk 0:01:25]}  Qg6 {[%clk 0:00:32]} 30. Rxf5 {[%clk 0:01:22]}  Rxf5 {[%clk 0:00:25]} 31. Nf3 {[%clk 0:01:20]}  Bh6 {[%clk 0:00:19]} 32. g4 {[%clk 0:01:15]}  Qg7 {[%clk 0:00:11]} 33. Rg1 {[%clk 0:00:58]}  Rf4 {[%clk 0:00:11]} 34. Qe2 {[%clk 0:00:57]}  Rxg4+ {[%clk 0:00:11]} 35. Kf2 {[%clk 0:00:55]}  Rxg1 {[%clk 0:00:10]} 36. Nxg1 {[%clk 0:00:55]}  Bf4 {[%clk 0:00:06]} 37. Nf3 {[%clk 0:00:53]}  Qg3+ {[%clk 0:00:06]} 38. Kf1 {[%clk 0:00:53]}  Qh3+ {[%clk 0:00:06]} 39. Qg2+ {[%clk 0:00:53]}  Qxg2+ {[%clk 0:00:06]} 40. Kxg2 {[%clk 0:00:54]}  Kf7 {[%clk 0:00:06]} 41. Kh3 {[%clk 0:00:47]}  Kg6 {[%clk 0:00:06]} 42. Kg4 {[%clk 0:00:47]}  Bc1 {[%clk 0:00:06]} 43. b3 {[%clk 0:00:48]}  Ne7 {[%clk 0:00:04]} 44. Nh4+ {[%clk 0:00:48]}  Kf7 {[%clk 0:00:04]} 45. Kf3 {[%clk 0:00:48]}  Nd5 {[%clk 0:00:04]} 46. Ke4 {[%clk 0:00:46]}  Be3 {[%clk 0:00:04]} 47. Na5 {[%clk 0:00:35]}  b6 {[%clk 0:00:03]} 48. Nc6 {[%clk 0:00:34]}  Nc3+ {[%clk 0:00:03]} 49. Kf3 {[%clk 0:00:34]}  a5 {[%clk 0:00:03]} 50. Ng2 {[%clk 0:00:32]}  Bg5 {[%clk 0:00:03]} 51. Nxd4 {[%clk 0:00:32]}  Nd1 {[%clk 0:00:02]} 52. Nb5 {[%clk 0:00:31]}  Nb2 {[%clk 0:00:03]} 53. Nxc7 {[%clk 0:00:30]}  Nd1 {[%clk 0:00:02]} 54. Na8 {[%clk 0:00:28]}  Bd8 {[%clk 0:00:01]} 55. Nf4 {[%clk 0:00:19]}  Ke7 {[%clk 0:00:01]} 56. Ke2 {[%clk 0:00:19]}  Nc3+ {[%clk 0:00:01]} 57. Ke3 {[%clk 0:00:19]}  Kd7 {[%clk 0:00:01]} 58. d4 {[%clk 0:00:20]}  Nd1+ {[%clk 0:00:01]} 59. Kd3 {[%clk 0:00:20]}  Nf2+ {[%clk 0:00:01]} 60. Ke2 {[%clk 0:00:19]}  Ne4 {[%clk 0:00:01]} 61. d5 {[%clk 0:00:19]}  exd5 {[%clk 0:00:01]} 62. e6+ {[%clk 0:00:20]}  Kc6 {[%clk 0:00:01]} 63. Ke3 {[%clk 0:00:18]}  Nd6 {[%clk 0:00:01]} 64. Kd4 {[%clk 0:00:16]}  Nf5+ {[%clk 0:00:01]} 65. Ke5 {[%clk 0:00:16]}  Ne3 {[%clk 0:00:02]} 66. Ng6 {[%clk 0:00:16]}  Nxc2 {[%clk 0:00:02]} 67. e7 {[%clk 0:00:16]}  Bxe7 {[%clk 0:00:02]} 68. Nxe7+ {[%clk 0:00:17]}  Kb7 {[%clk 0:00:03]} 69. Nxd5 {[%clk 0:00:18]}  Kxa8 {[%clk 0:00:03]} 70. Nxb6+ {[%clk 0:00:18]}  Kb7 {[%clk 0:00:04]} 71. Nc4 {[%clk 0:00:19]}  Nb4 {[%clk 0:00:04]} 72. Nxa5+ {[%clk 0:00:19]}  Kb6 {[%clk 0:00:04]} 73. Nc4+ {[%clk 0:00:20]}  Kc5 {[%clk 0:00:04]} 74. Ke4 {[%clk 0:00:20]}  Nc6 {[%clk 0:00:04]} 75. Kd3 {[%clk 0:00:21]}  Kb4 {[%clk 0:00:05]} 76. Nd2 {[%clk 0:00:19]}  Na5 {[%clk 0:00:05]} 77. Kc2 {[%clk 0:00:19]}  Nc6 {[%clk 0:00:04]} 78. Kb2 {[%clk 0:00:20]}  Nd4 {[%clk 0:00:04]} 79. a5 {[%clk 0:00:12]}  Kxa5 {[%clk 0:00:04]} 80. Kc3 {[%clk 0:00:13]}  Nxb3 {[%clk 0:00:04]} 1/2-1/2


[Site "https://www.chess.com"]

[Event "Titled Tuesday Blitz July 05 Late 2022"]
[White "Xiong, Jeffery"]
[Black "Diaz Perez, Michel Alejandro"]
[WhiteFideId "2047640"]
[BlackFideId "3517179"]
[WhiteElo "2714"]
[BlackElo "2313"]
[Result "1-0"]
[Round "02"]
[TimeControl "180+1"]
[Date "2022.07.05"]
[WhiteClock "0:03:01"]
[BlackClock "0:02:27"]

1. e4 {[%clk 0:03:00]}  e5 {[%clk 0:02:58]} 2. Nf3 {[%clk 0:03:01]}  Nc6 {[%clk 0:02:59]} 3. Nc3 {[%clk 0:03:01]}  Nf6 {[%clk 0:02:58]} 4. d4 {[%clk 0:03:02]}  exd4 {[%clk 0:02:59]} 5. Nxd4 {[%clk 0:03:02]}  Bb4 {[%clk 0:02:59]} 6. Nxc6 {[%clk 0:03:03]}  bxc6 {[%clk 0:02:59]} 7. Bd3 {[%clk 0:03:04]}  d5 {[%clk 0:02:59]} 8. exd5 {[%clk 0:03:05]}  cxd5 {[%clk 0:03:00]} 9. O-O {[%clk 0:03:05]}  O-O {[%clk 0:03:00]} 10. h3 {[%clk 0:03:06]}  c6 {[%clk 0:03:00]} 11. Qf3 {[%clk 0:03:06]}  Bd6 {[%clk 0:02:59]} 12. Bf4 {[%clk 0:03:07]}  Rb8 {[%clk 0:02:56]} 13. b3 {[%clk 0:03:07]}  h6 {[%clk 0:02:54]} 14. Rfe1 {[%clk 0:03:05]}  Qc7 {[%clk 0:02:53]} 15. Bxh6 {[%clk 0:03:01]}  Be5 {[%clk 0:02:51]} 16. Rxe5 {[%clk 0:03:01]}  Qxe5 {[%clk 0:02:50]} 17. Bf4 {[%clk 0:03:01]}  Qxc3 {[%clk 0:02:49]} 18. Bh7+ {[%clk 0:03:01]}  Nxh7 {[%clk 0:02:48]} 19. Qxc3 {[%clk 0:03:02]}  Rb6 {[%clk 0:02:34]} 20. Re1 {[%clk 0:03:02]}  Be6 {[%clk 0:02:30]} 21. Be5 {[%clk 0:03:01]}  Rc8 {[%clk 0:02:27]} 22. Bxg7 {[%clk 0:03:01]} 1-0


[Site "https://www.chess.com"]

[Event "Titled Tuesday Blitz July 05 Late 2022"]
[White "Yurovskykh, Oleksandr"]
[Black "Sanal, Vahap"]
[WhiteFideId "14134020"]
[BlackFideId "6300545"]
[WhiteElo "2292"]
[BlackElo "2574"]
[Result "0-1"]
[Round "02"]
[TimeControl "180+1"]
[Date "2022.07.05"]
[WhiteClock "0:00:01"]
[BlackClock "0:00:02"]

1. d4 {[%clk 0:02:53]}  f5 {[%clk 0:02:59]} 2. Nc3 {[%clk 0:02:52]}  Nf6 {[%clk 0:03:00]} 3. Bg5 {[%clk 0:02:52]}  e6 {[%clk 0:02:58]} 4. e4 {[%clk 0:02:52]}  fxe4 {[%clk 0:02:56]} 5. Nxe4 {[%clk 0:02:53]}  Be7 {[%clk 0:02:57]} 6. Bxf6 {[%clk 0:02:53]}  Bxf6 {[%clk 0:02:57]} 7. Qh5+ {[%clk 0:02:52]}  g6 {[%clk 0:02:56]} 8. Qh6 {[%clk 0:02:53]}  Qe7 {[%clk 0:02:44]} 9. Nxf6+ {[%clk 0:02:49]}  Qxf6 {[%clk 0:02:44]} 10. Nf3 {[%clk 0:02:47]}  b6 {[%clk 0:02:42]} 11. O-O-O {[%clk 0:02:42]}  Bb7 {[%clk 0:02:42]} 12. Be2 {[%clk 0:02:43]}  Nc6 {[%clk 0:02:37]} 13. h4 {[%clk 0:02:21]}  O-O-O {[%clk 0:02:36]} 14. h5 {[%clk 0:02:21]}  Nb4 {[%clk 0:02:31]} 15. a3 {[%clk 0:02:08]}  Nd5 {[%clk 0:02:31]} 16. hxg6 {[%clk 0:02:07]}  hxg6 {[%clk 0:02:30]} 17. Qg5 {[%clk 0:02:07]}  Qf4+ {[%clk 0:02:09]} 18. Kb1 {[%clk 0:02:00]}  Qxg5 {[%clk 0:02:10]} 19. Nxg5 {[%clk 0:02:01]}  Nf4 {[%clk 0:02:10]} 20. Bf3 {[%clk 0:01:59]}  Bxf3 {[%clk 0:02:10]} 21. gxf3 {[%clk 0:01:55]}  Rh5 {[%clk 0:02:10]} 22. Ne4 {[%clk 0:01:55]}  Rdh8 {[%clk 0:02:08]} 23. Ng3 {[%clk 0:01:54]}  Rh2 {[%clk 0:02:03]} 24. Rxh2 {[%clk 0:01:52]}  Rxh2 {[%clk 0:02:04]} 25. Rf1 {[%clk 0:01:53]}  Nh3 {[%clk 0:01:58]} 26. Rh1 {[%clk 0:01:43]}  Rxh1+ {[%clk 0:01:58]} 27. Nxh1 {[%clk 0:01:43]}  Ng5 {[%clk 0:01:59]} 28. c3 {[%clk 0:01:42]}  Nxf3 {[%clk 0:01:59]} 29. Kc2 {[%clk 0:01:43]}  Kd8 {[%clk 0:01:51]} 30. Kd3 {[%clk 0:01:43]}  Ke7 {[%clk 0:01:52]} 31. Ke3 {[%clk 0:01:43]}  Nh4 {[%clk 0:01:52]} 32. Ng3 {[%clk 0:01:42]}  Nf5+ {[%clk 0:01:52]} 33. Kf4 {[%clk 0:01:34]}  Nxg3 {[%clk 0:01:51]} 34. fxg3 {[%clk 0:01:35]}  Kf6 {[%clk 0:01:51]} 35. g4 {[%clk 0:01:34]}  g5+ {[%clk 0:01:51]} 36. Ke3 {[%clk 0:01:34]}  d6 {[%clk 0:01:50]} 37. c4 {[%clk 0:01:34]}  Ke7 {[%clk 0:01:48]} 38. Ke4 {[%clk 0:01:15]}  c6 {[%clk 0:01:48]} 39. d5 {[%clk 0:01:13]}  cxd5+ {[%clk 0:01:42]} 40. cxd5 {[%clk 0:01:14]}  Kf6 {[%clk 0:01:42]} 41. a4 {[%clk 0:01:12]}  a5 {[%clk 0:01:34]} 42. Kd4 {[%clk 0:00:56]}  Ke7 {[%clk 0:01:32]} 43. Ke4 {[%clk 0:00:47]}  Kd7 {[%clk 0:01:22]} 44. Kd4 {[%clk 0:00:46]}  Ke7 {[%clk 0:00:45]} 45. Ke4 {[%clk 0:00:44]}  Kf6 {[%clk 0:00:41]} 46. Kd4 {[%clk 0:00:40]}  Kf7 {[%clk 0:00:25]} 47. Ke4 {[%clk 0:00:40]}  exd5+ {[%clk 0:00:16]} 48. Kxd5 {[%clk 0:00:40]}  Ke7 {[%clk 0:00:17]} 49. Kc6 {[%clk 0:00:40]}  Ke6 {[%clk 0:00:18]} 50. Kxb6 {[%clk 0:00:41]}  d5 {[%clk 0:00:13]} 51. Kxa5 {[%clk 0:00:35]}  Ke5 {[%clk 0:00:13]} 52. Kb4 {[%clk 0:00:34]}  d4 {[%clk 0:00:09]} 53. Kc4 {[%clk 0:00:34]}  Ke4 {[%clk 0:00:09]} 54. a5 {[%clk 0:00:32]}  d3 {[%clk 0:00:09]} 55. a6 {[%clk 0:00:33]}  d2 {[%clk 0:00:10]} 56. a7 {[%clk 0:00:33]}  d1=Q {[%clk 0:00:10]} 57. a8=Q+ {[%clk 0:00:34]}  Kf4 {[%clk 0:00:11]} 58. Qg2 {[%clk 0:00:13]}  Qc1+ {[%clk 0:00:04]} 59. Kb3 {[%clk 0:00:07]}  Qc8 {[%clk 0:00:03]} 60. Qe2 {[%clk 0:00:05]}  Qxg4 {[%clk 0:00:03]} 61. Qd3 {[%clk 0:00:03]}  Qf3 {[%clk 0:00:03]} 62. Kc4 {[%clk 0:00:03]}  g4 {[%clk 0:00:02]} 63. Qd6+ {[%clk 0:00:01]}  Kg5 {[%clk 0:00:02]} 0-1


[Site "https://www.chess.com"]

[Event "Titled Tuesday Blitz July 05 Late 2022"]
[White "Zajic, Milan"]
[Black "Vakhlamov, Igor L."]
[WhiteFideId "912336"]
[BlackFideId "24126748"]
[WhiteElo "2445"]
[BlackElo "2401"]
[Result "1-0"]
[Round "02"]
[TimeControl "180+1"]
[Date "2022.07.05"]
[WhiteClock "0:00:07"]
[BlackClock "0:00:08"]

1. e4 {[%clk 0:02:37]}  c5 {[%clk 0:02:59]} 2. Nf3 {[%clk 0:02:37]}  Nc6 {[%clk 0:02:59]} 3. Bb5 {[%clk 0:02:37]}  Nf6 {[%clk 0:03:00]} 4. Bxc6 {[%clk 0:02:35]}  dxc6 {[%clk 0:03:01]} 5. d3 {[%clk 0:02:35]}  Bg4 {[%clk 0:03:01]} 6. Nbd2 {[%clk 0:02:32]}  Qc7 {[%clk 0:03:01]} 7. h3 {[%clk 0:02:32]}  Bh5 {[%clk 0:03:01]} 8. Nf1 {[%clk 0:02:30]}  Nd7 {[%clk 0:02:59]} 9. Ng3 {[%clk 0:02:30]}  Bg6 {[%clk 0:03:00]} 10. O-O {[%clk 0:02:28]}  e6 {[%clk 0:03:00]} 11. Nh4 {[%clk 0:02:27]}  Bd6 {[%clk 0:02:49]} 12. f4 {[%clk 0:02:25]}  f6 {[%clk 0:02:46]} 13. Nxg6 {[%clk 0:01:57]}  hxg6 {[%clk 0:02:47]} 14. Qg4 {[%clk 0:01:57]}  Nf8 {[%clk 0:02:46]} 15. e5 {[%clk 0:01:55]}  Be7 {[%clk 0:02:34]} 16. exf6 {[%clk 0:01:52]}  gxf6 {[%clk 0:02:35]} 17. Bd2 {[%clk 0:01:44]}  O-O-O {[%clk 0:02:34]} 18. Bc3 {[%clk 0:01:40]}  b6 {[%clk 0:02:24]} 19. Rae1 {[%clk 0:01:38]}  Kb7 {[%clk 0:02:23]} 20. Ne4 {[%clk 0:01:29]}  f5 {[%clk 0:02:15]} 21. Qg3 {[%clk 0:01:26]}  Bh4 {[%clk 0:01:56]} 22. Qe3 {[%clk 0:01:21]}  Bxe1 {[%clk 0:01:46]} 23. Bxh8 {[%clk 0:01:04]}  fxe4 {[%clk 0:01:46]} 24. Rxe1 {[%clk 0:01:03]}  exd3 {[%clk 0:01:45]} 25. cxd3 {[%clk 0:01:04]}  Qf7 {[%clk 0:01:41]} 26. Bc3 {[%clk 0:00:59]}  a5 {[%clk 0:01:41]} 27. a3 {[%clk 0:00:58]}  Qf5 {[%clk 0:01:39]} 28. d4 {[%clk 0:00:56]}  cxd4 {[%clk 0:01:39]} 29. Bxd4 {[%clk 0:00:57]}  c5 {[%clk 0:01:37]} 30. Qf3+ {[%clk 0:00:47]}  Ka7 {[%clk 0:01:25]} 31. Be5 {[%clk 0:00:39]}  Rd5 {[%clk 0:01:12]} 32. b4 {[%clk 0:00:36]}  Nd7 {[%clk 0:00:46]} 33. bxa5 {[%clk 0:00:32]}  bxa5 {[%clk 0:00:47]} 34. Qc3 {[%clk 0:00:31]}  Nxe5 {[%clk 0:00:40]} 35. Qxa5+ {[%clk 0:00:27]}  Kb7 {[%clk 0:00:40]} 36. fxe5 {[%clk 0:00:21]}  Rxe5 {[%clk 0:00:32]} 37. Qb5+ {[%clk 0:00:20]}  Kc7 {[%clk 0:00:33]} 38. Rb1 {[%clk 0:00:20]}  Qe4 {[%clk 0:00:26]} 39. Qb8+ {[%clk 0:00:15]}  Kc6 {[%clk 0:00:22]} 40. Qc8+ {[%clk 0:00:10]}  Kd5 {[%clk 0:00:20]} 41. Rd1+ {[%clk 0:00:09]}  Kc4 {[%clk 0:00:20]} 42. Qa6+ {[%clk 0:00:08]}  Kc3 {[%clk 0:00:20]} 43. Qa5+ {[%clk 0:00:07]}  Kb3 {[%clk 0:00:18]} 44. Qb5+ {[%clk 0:00:06]}  Kc3 {[%clk 0:00:13]} 45. Rc1+ {[%clk 0:00:07]}  Kd2 {[%clk 0:00:08]} 46. Qb2+ {[%clk 0:00:07]}  Kd3 {[%clk 0:00:08]} 47. Rc3+ {[%clk 0:00:07]}  Kd4 {[%clk 0:00:08]} 48. Qd2+ {[%clk 0:00:07]}  Qd3 {[%clk 0:00:08]} 49. Qxd3# {[%clk 0:00:07]} 1-0


[Site "https://www.chess.com"]